bitfinex/quotes_ETHUSD_20250602
["timestamp","ask_amount","ask_price","bid_price","bid_amount"]
[1748825018540,0.37708345,2533.2,2533.1,3.94771239]
[1748825020590,2.5239,2533.6,2533.5,3.94710874]
[1748825020772,4.49105443,2533.6,2533.5,3.94710874]
[1748825020971,4.114,2533.6,2533.3,3.9473977]
[1748825021152,0.37706807,2533.5,2533.4,3.94718793]
[1748825022392,9.22109328,2533.8,2533.6,3.94682557]
[1748825022685,0.37702578,2533.7,2533.6,3.94682557]
[1748825022903,0.37702578,2533.7,2533.5,3.9470335]
[1748825023056,9.22109328,2533.8,2533.5,3.9470335]
[1748825023358,0.37699698,2533.7,2533.5,3.9470335]
[1748825023560,9.22109328,2533.8,2533.5,3.9470335]
[1748825023760,0.37692281,2533.7,2533.5,3.9470335]
[1748825023959,9.22109328,2533.8,2533.5,3.9470335]
[1748825024160,0.37690572,2533.7,2533.6,3.94694882]
[1748825024364,0.37679308,2533.7,2533.6,3.94694882]
[1748825025462,6.85209328,2533.8,2533.6,3.94694882]
[1748825026396,6.85209328,2533.8,2533.5,3.94704566]
[1748825027081,2.73909328,2533.8,2533.5,3.94704566]
[1748825027276,6.85109328,2533.8,2533.5,3.94704566]
[1748825027665,6.85109328,2533.8,2533.6,3.94692111]
[1748825028286,5.10709328,2534.0,2533.4,4.74965913]
[1748825028473,4.112,2533.8,2533.7,3.9467057]
[1748825029365,6.85109328,2533.8,2533.6,3.94687521]
[1748825029675,6.85109328,2533.8,2533.7,3.94679717]
[1748825030085,6.85109328,2533.8,2533.6,3.94686511]
[1748825030914,6.85109328,2533.8,2533.4,4.7495803]
[1748825031212,2.73909328,2533.6,2533.4,4.7495803]
[1748825031375,2.73909328,2533.6,2533.5,3.94710874]
[1748825031571,0.47051683,2534.4,2534.2,3.94601846]
[1748825031795,0.47051683,2534.4,2534.1,0.7602]
[1748825031796,2.73909328,2534.7,2534.4,3.94561677]
[1748825031997,4.48836363,2534.6,2534.4,3.94561677]
[1748825032212,2.73909328,2534.5,2534.1,0.7602]
[1748825032503,2.73909328,2534.5,2534.3,3.94578648]
[1748825032884,2.73909328,2534.5,2534.4,3.94570707]
[1748825034606,6.85009328,2534.6,2534.4,3.94557631]
[1748825034801,6.85009328,2534.6,2534.5,3.94555139]
[1748825036109,0.1559,2534.8,2534.5,3.94555139]
[1748825036309,6.85009328,2534.7,2534.6,3.94536364]
[1748825036474,2.73909328,2534.7,2534.5,3.9454964]
[1748825036681,0.1559,2534.8,2534.6,3.94539572]
[1748825036682,6.85009328,2534.8,2534.6,3.94539572]
[1748825037225,2.368,2534.6,2534.2,3.94593417]
[1748825037407,2.73909328,2534.3,2533.7,0.8217]
[1748825037730,2.73909328,2533.9,2533.7,0.8217]
[1748825037884,2.73909328,2533.9,2533.6,1.094]
[1748825038091,2.73909328,2533.7,2533.6,5.04095295]
[1748825038391,2.73909328,2533.9,2533.7,3.94679347]
[1748825038785,2.73909328,2533.9,2533.8,3.9466414]
[1748825038982,2.73909328,2534.1,2533.6,1.094]
[1748825039209,6.84909328,2534.1,2534.0,3.94632991]
[1748825039416,2.73909328,2534.1,2534.0,3.94632991]
[1748825039782,2.73909328,2534.1,2533.9,3.94641154]
[1748825040776,2.73909328,2534.1,2533.5,0.7741]
[1748825040980,2.73909328,2534.1,2533.9,3.9464551]
[1748825041296,2.73909328,2534.1,2533.7,3.94672698]
[1748825041597,2.73909328,2533.9,2533.6,3.9469252]
[1748825041782,2.73909328,2533.9,2533.7,3.94679717]
[1748825042177,2.73909328,2533.9,2533.6,3.94687358]
[1748825042405,2.73909328,2533.7,2533.4,3.94726197]
[1748825042719,2.73909328,2533.5,2533.4,3.94726197]
[1748825042884,2.73909328,2533.7,2533.4,3.94726197]
[1748825043084,2.73909328,2533.7,2533.5,3.94708832]
[1748825043882,0.37598747,2533.9,2533.3,3.94742036]
[1748825044085,4.48598747,2533.9,2533.7,3.94669331]
[1748825044285,4.48598415,2533.9,2533.7,3.94669331]
[1748825044685,4.11,2533.9,2533.7,3.94669331]
[1748825045099,6.84909328,2533.9,2533.5,3.94702379]
[1748825045283,0.1559,2533.8,2533.5,3.94697766]
[1748825045717,0.1559,2533.8,2533.4,3.9472449]
[1748825045718,0.53200305,2533.8,2533.4,3.9472449]
[1748825046220,2.73909328,2533.7,2533.3,3.94734361]
[1748825046514,2.73909328,2533.7,2533.4,3.94721178]
[1748825046721,2.73909328,2533.7,2533.3,3.94741415]
[1748825046921,2.73909328,2533.7,2533.2,0.7502]
[1748825047139,6.47061985,2533.8,2533.1,3.94771682]
[1748825047140,2.73909328,2533.3,2533.1,3.94771682]
[1748825047417,3.1152186,2533.5,2533.3,3.94736694]
[1748825047615,2.73909328,2533.5,2533.2,3.94749651]
[1748825047984,3.11522817,2533.5,2533.2,3.94749651]
[1748825048517,3.11522858,2533.5,2533.2,3.94749651]
[1748825048720,3.1152556,2533.5,2533.2,3.94749651]
[1748825049361,0.37616232,2533.5,2533.4,3.94726454]
[1748825049487,0.1559,2534.1,2533.5,3.94710874]
[1748825049826,4.2659,2534.3,2533.9,3.94635562]
[1748825050026,0.37632062,2534.2,2533.9,3.94635562]
[1748825050227,0.37632062,2534.1,2533.9,3.94635562]
[1748825050431,4.2659,2534.3,2534.0,3.94631628]
[1748825050644,0.3763857,2534.2,2533.9,3.94645665]
[1748825050933,2.73909328,2534.2,2533.9,3.94645665]
[1748825051293,2.73909328,2534.2,2533.4,0.7729]
[1748825051294,2.73909328,2534.2,2533.8,3.94656077]
[1748825051637,0.37644761,2534.1,2533.8,3.94656077]
[1748825051940,2.73909328,2534.2,2533.9,3.94638208]
[1748825052105,0.37648024,2534.1,2533.9,3.94638208]
[1748825052439,6.84809328,2534.2,2533.9,3.94638208]
[1748825052734,0.37649806,2534.1,2533.9,3.94638208]
[1748825052910,6.84809328,2534.2,2533.9,3.94638208]
[1748825053105,0.3765506,2534.1,2533.8,3.94656018]
[1748825053306,2.73909328,2534.0,2533.4,0.7729]
[1748825053526,2.73909328,2534.0,2533.5,3.94699229]
[1748825053713,2.73909328,2534.0,2533.6,3.94692342]
[1748825053929,2.73909328,2533.8,2532.3,9.09955742]
[1748825054111,2.73909328,2533.5,2533.2,3.94753182]
[1748825056938,2.73909328,2533.5,2533.3,3.94741327]
[1748825057148,2.73909328,2533.5,2533.2,3.94750389]
[1748825058315,2.73909328,2533.5,2533.1,3.94771643]
[1748825058732,2.368,2533.4,2533.2,3.94755403]
[1748825058934,2.89499328,2533.5,2533.2,3.94755403]
[1748825059136,2.89499328,2533.5,2533.0,0.8172]
[1748825059433,6.477,2533.6,2533.3,3.94729999]
[1748825060172,0.1559,2533.9,2533.0,1.81403897]
[1748825060373,0.37634604,2533.8,2533.5,0.7518]
[1748825060575,4.109,2533.9,2533.7,3.94679717]
[1748825060872,0.37634823,2533.8,2533.7,3.94679717]
[1748825061452,6.84809328,2533.9,2533.7,3.94679717]
[1748825061855,5.26299328,2534.1,2533.5,0.7518]
[1748825062070,6.85263715,2534.0,2533.7,3.94672364]
[1748825062248,6.477,2534.0,2533.6,3.94695295]
[1748825062552,4.109,2534.0,2533.8,3.9466414]
[1748825063620,0.37599133,2533.9,2533.8,3.9466414]
[1748825063954,0.62584051,2534.4,2533.8,0.78934075]
[1748825064120,0.37601837,2534.3,2534.1,3.94610369]
[1748825064317,0.37601837,2534.2,2534.1,3.94610369]
[1748825064627,0.65404044,2534.6,2534.3,3.94585548]
[1748825064836,3.11522131,2534.5,2533.9,4.76087445]
[1748825065029,0.37612803,2534.4,2534.1,3.94608612]
[1748825065228,0.37612803,2534.3,2534.1,3.94608612]
[1748825065440,2.73909328,2534.5,2534.1,3.94608612]
[1748825065639,0.37621848,2534.4,2534.1,3.94608612]
[1748825065840,0.37621244,2534.3,2534.1,3.94608612]
[1748825066040,2.73909328,2534.5,2534.1,4.87228433]
[1748825066241,0.37622521,2534.4,2534.1,4.87228433]
[1748825066446,0.37638004,2534.3,2534.1,4.87228433]
[1748825066630,2.73909328,2534.5,2534.1,4.87228433]
[1748825066832,0.37633896,2534.4,2534.1,4.87228433]
[1748825067031,0.37633896,2534.3,2534.1,4.87228433]
[1748825067252,9.05276216,2534.5,2534.1,0.92619821]
[1748825067432,0.37632138,2534.4,2534.0,3.94623968]
[1748825067754,0.37632138,2534.3,2533.9,4.76085053]
[1748825067932,5.10709328,2534.5,2533.9,4.76085053]
[1748825068134,0.37626847,2534.4,2534.0,3.94625303]
[1748825068348,0.37626847,2534.3,2533.9,4.76092046]
[1748825068542,9.05272035,2534.5,2534.0,3.94627359]
[1748825068853,0.37624637,2534.4,2534.0,3.94627359]
[1748825069044,0.37624637,2534.3,2534.0,3.94627359]
[1748825069245,9.05272035,2534.5,2534.0,3.94627359]
[1748825069450,0.37621463,2534.4,2534.0,3.94627359]
[1748825069634,0.37621463,2534.3,2534.0,3.94627359]
[1748825069840,9.05269415,2534.5,2534.0,3.94627359]
[1748825070038,0.37616778,2534.4,2534.0,3.94627359]
[1748825070239,0.37617027,2534.3,2534.0,3.94627359]
[1748825070438,9.05269415,2534.5,2534.0,3.94627359]
[1748825070655,0.37617137,2534.4,2534.0,3.94627359]
[1748825070844,0.37617137,2534.3,2534.0,3.94627359]
[1748825071049,9.05269415,2534.5,2534.0,3.94627359]
[1748825071250,0.37615597,2534.4,2534.0,3.94627359]
[1748825071437,0.37615597,2534.3,2534.0,3.94627359]
[1748825071735,9.05269415,2534.5,2534.0,3.94627359]
[1748825071940,0.37623781,2534.4,2534.1,3.94616705]
[1748825072169,0.37623781,2534.3,2534.1,3.94616705]
[1748825072345,5.10709328,2534.5,2534.1,3.94616705]
[1748825072667,0.37622516,2534.4,2534.1,3.94616705]
[1748825072841,0.37622516,2534.3,2534.1,3.94616705]
[1748825073042,5.10709328,2534.5,2534.1,3.94616705]
[1748825073243,0.37617842,2534.4,2534.1,3.94616705]
[1748825073443,0.37617842,2534.3,2534.0,3.94632991]
[1748825073643,5.10709328,2534.5,2534.1,3.94609149]
[1748825073862,0.37613812,2534.4,2534.1,3.94609149]
[1748825074162,0.37613812,2534.3,2534.1,3.94609149]
[1748825074464,5.10709328,2534.5,2534.1,3.94609149]
[1748825074665,0.3761345,2534.4,2534.0,3.94632991]
[1748825074878,4.107,2534.4,2534.2,3.94600575]
[1748825075375,0.37612607,2534.3,2534.1,3.94610577]
[1748825075580,4.107,2534.4,2534.1,3.94610577]
[1748825075778,0.37610718,2534.3,2534.1,3.94610577]
[1748825075976,4.107,2534.4,2534.1,3.94610577]
[1748825076278,0.37611112,2534.3,2534.1,3.94610577]
[1748825076472,4.107,2534.4,2534.1,3.94610577]
[1748825076785,0.37609649,2534.3,2534.2,3.94597475]
[1748825078446,0.37615466,2534.3,2534.2,3.94597475]
[1748825078995,4.107,2534.7,2534.5,3.94548205]
[1748825079284,6.84609328,2534.7,2534.3,4.72767796]
[1748825079654,0.37626945,2534.6,2534.4,3.94569815]
[1748825079854,6.84609328,2534.7,2534.4,3.94569815]
[1748825080396,0.37622827,2534.6,2534.4,3.94569815]
[1748825080599,6.84609328,2534.7,2534.3,4.7276529]
[1748825080887,0.37614037,2534.6,2534.3,4.7276529]
[1748825081091,2.73909328,2534.7,2534.4,3.94569788]
[1748825081274,0.37614245,2534.6,2534.4,3.94569788]
[1748825081458,6.84609328,2534.7,2534.4,3.94569788]
[1748825081642,0.37613946,2534.6,2534.4,3.94569788]
[1748825081842,6.84609328,2534.7,2534.4,3.94569788]
[1748825082067,0.37607143,2534.6,2534.5,3.94551321]
[1748825082273,0.37607143,2534.6,2534.4,3.94563287]
[1748825082452,6.84609328,2534.7,2534.4,3.94563287]
[1748825082978,2.73909328,2534.7,2534.5,3.94554242]
[1748825083299,6.84509328,2534.7,2534.5,3.94544427]
[1748825084764,6.84509328,2534.7,2534.4,3.94565356]
[1748825085279,6.84509328,2534.7,2534.5,3.94546014]
[1748825085865,6.84509328,2534.7,2534.6,3.94539572]
[1748825086067,7.22107618,2534.7,2534.6,3.94539572]
[1748825087252,0.3759829,2534.7,2534.6,3.94539572]
[1748825087484,4.126,2534.9,2534.8,3.94508442]
[1748825087783,4.50203394,2534.9,2534.8,3.94508442]
[1748825088193,4.50203394,2534.9,2534.7,3.9451275]
[1748825088363,4.126,2534.9,2534.7,3.9451275]
[1748825088556,4.126,2534.9,2534.8,3.94508442]
[1748825088757,4.50221599,2534.9,2534.8,3.94508442]
[1748825089398,4.50220629,2534.9,2534.8,3.94508442]
[1748825089592,0.39620629,2534.9,2534.8,3.94508442]
[1748825090889,0.39620629,2534.9,2534.8,4.41850205]
[1748825090890,0.02,2534.9,2534.8,4.41850205]
[1748825091398,0.02,2534.9,2534.8,5.19150205]
[1748825092697,2.75909328,2534.9,2534.5,0.8301]
[1748825092898,2.75909328,2534.9,2534.6,3.94539572]
[1748825093098,2.75909328,2534.9,2534.5,4.77564961]
[1748825093490,2.75909328,2534.9,2534.7,3.94522014]
[1748825093798,0.02,2534.9,2534.8,3.94508442]
[1748825094003,0.39614624,2534.9,2534.8,3.94508442]
[1748825094600,0.39614624,2534.9,2534.8,4.73411488]
[1748825094797,0.02,2534.9,2534.8,4.73411488]
[1748825094991,0.02,2534.9,2534.8,3.94508442]
[1748825096067,0.02,2534.9,2534.6,3.94538352]
[1748825096300,0.02,2534.9,2534.8,3.94508442]
[1748825098388,0.02,2534.9,2534.8,4.74388442]
[1748825103536,0.02,2534.9,2534.5,0.8249]
[1748825103700,2.73909328,2534.8,2534.7,3.94524006]
[1748825104027,0.37574648,2534.8,2534.6,3.94532518]
[1748825104188,0.02,2534.9,2534.5,4.77036823]
[1748825104390,0.3757374,2534.8,2534.6,3.94538986]
[1748825104589,2.5439,2534.9,2534.6,3.94538986]
[1748825104795,0.37576284,2534.8,2534.5,3.94548043]
[1748825105126,2.73909328,2534.8,2534.3,4.77070804]
[1748825105325,6.84209328,2534.8,2534.4,3.94555483]
[1748825105482,6.84209328,2534.8,2534.5,3.94555006]
[1748825105919,6.84209328,2534.8,2534.4,3.94565441]
[1748825106110,6.84209328,2534.8,2534.5,3.94552726]
[1748825107336,6.84209328,2534.8,2534.3,0.8249]
[1748825107528,0.37598619,2534.7,2534.4,3.9455714]
[1748825107735,0.37598619,2534.7,2534.3,0.8249]
[1748825107736,2.73909328,2534.6,2534.3,3.94578764]
[1748825107931,2.73909328,2534.4,2534.0,3.94619448]
[1748825108130,2.73909328,2534.4,2534.1,3.94613222]
[1748825108298,2.73909328,2534.4,2534.2,3.9459731]
[1748825109336,4.2589,2534.5,2534.2,3.9459731]
[1748825109498,0.37601297,2534.4,2534.2,3.9459731]
[1748825109696,4.2589,2534.5,2534.2,3.9459731]
[1748825109902,0.37599768,2534.4,2534.2,3.9459731]
[1748825110140,4.2589,2534.5,2534.2,3.9459731]
[1748825110291,0.3760093,2534.4,2534.2,3.9459731]
[1748825110497,4.2589,2534.5,2534.2,3.9459731]
[1748825110796,0.37596873,2534.4,2534.3,3.94586276]
[1748825111112,0.37596873,2534.4,2534.2,3.94593964]
[1748825111310,4.2589,2534.5,2534.2,3.94593964]
[1748825111522,0.37603036,2534.4,2534.2,3.94593964]
[1748825111727,4.2589,2534.5,2534.2,3.94593964]
[1748825111909,0.37599572,2534.4,2534.2,3.94593964]
[1748825112114,4.2589,2534.5,2534.2,3.94593964]
[1748825112311,0.37598453,2534.4,2534.2,3.94593964]
[1748825112519,2.73909328,2534.6,2534.4,3.94565603]
[1748825112711,4.47894859,2534.5,2534.4,3.94565603]
[1748825112916,4.47894859,2534.5,2534.3,3.9457959]
[1748825113200,0.37594859,2534.4,2534.3,3.9457959]
[1748825113615,0.3759453,2534.4,2534.3,3.94586276]
[1748825114139,0.3759453,2534.4,2534.3,4.77396276]
[1748825114346,4.123,2534.9,2534.8,3.94508442]
[1748825114542,0.39607317,2534.9,2534.8,3.94508442]
[1748825115445,0.39607317,2534.9,2534.7,3.94512859]
[1748825115625,0.37607317,2534.8,2534.6,3.94534398]
[1748825115806,0.37607317,2534.7,2534.6,3.94534398]
[1748825118139,0.37629417,2534.7,2534.6,3.94539572]
[1748825119143,0.37629417,2534.7,2534.5,3.94547358]
[1748825119343,0.37629417,2534.6,2534.5,3.94547358]
[1748825119741,0.37629417,2534.6,2534.5,4.3656306]
[1748825120053,0.02,2534.9,2534.5,4.3656306]
[1748825120213,0.37630577,2534.8,2534.5,3.94547358]
[1748825120421,0.37634142,2534.7,2534.5,3.94547358]
[1748825120748,0.3763275,2534.6,2534.3,4.77382982]
[1748825120946,5.10709328,2534.8,2534.3,0.8281]
[1748825121251,0.37632071,2534.7,2534.3,0.8281]
[1748825121456,4.122,2534.9,2534.7,3.94523257]
[1748825121653,0.37636883,2534.8,2534.7,3.94523257]
[1748825121829,0.37636883,2534.8,2534.7,4.70583257]
[1748825122420,0.37637855,2534.8,2534.5,3.94546676]
[1748825122650,0.37637855,2534.7,2534.5,3.9454829]
[1748825122871,0.37637855,2534.6,2534.5,3.94555139]
[1748825123015,0.37637855,2534.6,2534.5,5.22377642]
[1748825123646,0.02,2534.9,2534.5,5.22377642]
[1748825123843,0.37642679,2534.8,2534.5,3.94555139]
[1748825124151,0.37642679,2534.7,2534.6,3.94539572]
[1748825125568,0.02,2534.9,2534.7,3.94514546]
[1748825125868,0.02,2534.9,2534.4,0.789]
[1748825125869,0.3763713,2534.8,2534.4,0.789]
[1748825126160,0.37635841,2534.7,2534.5,5.03345457]
[1748825126362,0.02,2534.9,2534.5,5.03345457]
[1748825126663,0.37636998,2534.8,2534.5,5.03345457]
[1748825126959,0.37636998,2534.7,2534.6,3.94539572]
[1748825127554,0.37636998,2534.7,2534.5,5.03350564]
[1748825127742,0.02,2534.9,2534.6,3.94539572]
[1748825127947,0.37638201,2534.8,2534.5,1.088]
[1748825128165,0.37638201,2534.7,2534.6,3.94538507]
[1748825130972,0.02,2534.9,2534.6,3.94538507]
[1748825131160,0.37657068,2534.8,2534.6,3.94538507]
[1748825131367,0.37657068,2534.7,2534.6,3.94538507]
[1748825132649,0.37657068,2534.7,2534.6,5.33227597]
[1748825133173,2.74457068,2534.7,2534.1,5.03408181]
[1748825133402,2.73909328,2534.4,2534.1,1.088]
[1748825133535,0.37657068,2534.3,2534.2,3.94593087]
[1748825133938,0.37693128,2534.3,2534.2,3.94593087]
[1748825135147,2.73909328,2534.6,2534.2,3.94593087]
[1748825135477,0.37692217,2534.5,2534.1,1.088]
[1748825135674,0.37692217,2534.4,2534.2,3.94588411]
[1748825135980,0.37692217,2534.3,2534.1,5.03407177]
[1748825136159,2.73909328,2534.6,2534.2,3.94600768]
[1748825136366,0.37691252,2534.5,2534.2,3.94600768]
[1748825136567,0.37691252,2534.4,2534.2,3.94600768]
[1748825136764,0.37691252,2534.3,2534.2,3.94600768]
[1748825137356,0.37691252,2534.3,2534.1,5.03408985]
[1748825137655,6.68449643,2534.6,2534.1,5.03408985]
[1748825137859,0.37703201,2534.5,2534.1,5.03408985]
[1748825138056,0.37703201,2534.4,2534.2,3.94600785]
[1748825138255,0.37703201,2534.3,2534.2,3.94600785]
[1748825139356,0.37703201,2534.3,2534.2,4.91942534]
[1748825139558,0.47124317,2534.8,2534.6,3.94539572]
[1748825139784,0.37699772,2534.7,2534.4,3.94570707]
[1748825140096,0.37699772,2534.6,2534.5,3.94546537]
[1748825140299,0.02,2534.9,2534.8,3.94508442]
[1748825140500,0.39702533,2534.9,2534.7,3.9451598]
[1748825140675,0.37702533,2534.8,2534.7,3.9451598]
[1748825141608,0.37702533,2534.8,2534.6,3.94531227]
[1748825141782,0.37702533,2534.7,2534.3,0.7669]
[1748825141988,0.02,2534.9,2534.7,3.94518185]
[1748825142183,0.37715098,2534.8,2534.7,3.94518185]
[1748825143104,0.37715098,2534.8,2534.7,4.77258185]
[1748825143431,0.02,2534.9,2534.7,4.77258185]
[1748825143432,0.02,2534.9,2534.8,3.94508442]
[1748825143581,0.39716288,2534.9,2534.8,3.94508442]
[1748825143924,0.39716288,2534.9,2534.8,1.26630364]
[1748825143925,0.39716507,2534.9,2534.8,1.26630364]
[1748825144119,0.39716507,2534.9,2534.7,4.77257114]
[1748825144324,0.02,2534.9,2534.7,4.77262935]
[1748825144614,0.37714205,2534.8,2534.6,3.94534257]
[1748825144819,0.02,2534.9,2534.6,3.94534257]
[1748825145026,0.37706073,2534.8,2534.7,3.94519262]
[1748825145188,0.37706073,2534.8,2534.6,3.94534257]
[1748825145189,0.37706073,2534.8,2534.6,3.94538287]
[1748825145385,0.02,2534.9,2534.7,3.94521376]
[1748825145614,3.96499908,2534.9,2534.5,0.8234]
[1748825145825,2.89499328,2534.6,2534.0,0.8003]
[1748825146022,0.37701209,2534.5,2534.0,4.74651257]
[1748825146236,0.37701209,2534.4,2534.1,3.94615754]
[1748825146418,0.37701209,2534.3,2534.1,3.94615754]
[1748825146615,9.67979369,2534.6,2533.7,3.9467072]
[1748825146616,3.11610537,2534.2,2533.7,3.9467072]
[1748825146920,0.37701209,2534.1,2533.4,0.7893]
[1748825147083,0.3768074,2534.0,2533.9,3.94648565]
[1748825147285,5.10709328,2534.4,2534.0,3.94622263]
[1748825147491,0.37674447,2534.3,2534.1,3.94616035]
[1748825147714,0.37674447,2534.2,2534.1,3.94616035]
[1748825148130,0.37666164,2534.2,2533.8,8.83485407]
[1748825148331,0.62672706,2534.6,2534.2,3.94586941]
[1748825148505,0.37660094,2534.5,2534.2,3.94586941]
[1748825148703,0.37660094,2534.4,2534.3,3.94585995]
[1748825149033,4.2549,2534.8,2534.4,3.94568111]
[1748825149193,0.37666485,2534.7,2534.4,3.94568111]
[1748825149528,0.37666485,2534.6,2534.1,3.94617418]
[1748825149728,0.37666485,2534.5,2534.3,3.94584241]
[1748825149907,0.37666485,2534.4,2534.3,3.94584241]
[1748825150108,0.37666485,2534.4,2534.2,3.94594227]
[1748825150309,6.31333047,2534.7,2534.2,3.94594227]
[1748825150505,0.37669006,2534.6,2534.3,3.94586236]
[1748825150728,0.37669006,2534.5,2534.4,3.94570707]
[1748825152042,0.37669006,2534.5,2534.3,3.94584675]
[1748825152043,0.37669006,2534.5,2534.3,3.94574562]
[1748825152205,2.89499328,2534.8,2534.4,3.94569599]
[1748825152398,0.37668167,2534.7,2534.4,3.94569599]
[1748825152599,0.37668167,2534.6,2534.2,3.94589428]
[1748825152799,0.376699,2534.5,2534.1,3.94610054]
[1748825153001,0.376699,2534.4,2534.3,3.94586276]
[1748825153632,0.1559,2534.8,2534.6,3.94532268]
[1748825153838,0.3766941,2534.7,2534.6,3.94532268]
[1748825155323,0.3766941,2534.7,2534.6,4.81038981]
[1748825155907,0.02,2534.9,2534.8,3.94508442]
[1748825156239,0.39677199,2534.9,2534.8,3.94508442]
[1748825157031,0.3967621,2534.9,2534.7,3.94517341]
[1748825157246,0.3767621,2534.8,2534.4,4.70546429]
[1748825157426,0.02,2534.9,2534.5,3.94543796]
[1748825157738,0.5326522,2534.8,2534.2,0.8246]
[1748825157941,0.3767522,2534.7,2534.4,3.94558479]
[1748825158105,0.1559,2534.8,2534.4,3.94558479]
[1748825158302,0.37674404,2534.7,2534.4,3.94558479]
[1748825158525,0.37674404,2534.6,2534.4,3.94558479]
[1748825158718,0.1559,2534.8,2534.4,3.94558479]
[1748825158903,0.37673991,2534.7,2534.4,3.94558479]
[1748825159103,0.37673991,2534.6,2534.3,3.9458156]
[1748825159309,2.73909328,2534.7,2534.4,3.94566883]
[1748825159538,0.37673424,2534.6,2534.3,3.94578955]
[1748825159739,2.73909328,2534.7,2534.3,3.94578955]
[1748825159920,0.37673349,2534.6,2534.3,3.94578955]
[1748825160120,2.73909328,2534.7,2534.4,3.945573]
[1748825160339,0.37673306,2534.6,2534.4,3.945573]
[1748825160511,2.73909328,2534.7,2534.3,3.94580611]
[1748825160711,0.37672195,2534.6,2534.3,3.94580611]
[1748825161019,0.37672195,2534.6,2534.0,4.7663138]
[1748825161020,7.06144078,2534.5,2534.0,4.7663138]
[1748825161210,0.37672233,2534.4,2534.1,3.94617418]
[1748825161412,0.37672233,2534.3,2534.2,3.94601846]
[1748825162048,0.37672233,2534.3,2534.1,3.9461064]
[1748825162224,2.368,2534.6,2534.0,4.76629302]
[1748825162423,0.37666961,2534.5,2534.2,3.94601375]
[1748825162623,0.37666961,2534.4,2534.2,3.94601375]
[1748825162941,0.37666961,2534.3,2534.1,3.94608831]
[1748825163142,6.31341812,2534.6,2534.1,3.94608831]
[1748825163343,3.11567004,2534.5,2534.1,3.94610185]
[1748825163544,0.37657676,2534.4,2534.3,3.94586276]
[1748825164045,0.37655611,2534.4,2534.3,3.94586276]
[1748825164847,2.5239,2534.8,2534.5,3.94543702]
[1748825164848,6.6219,2534.8,2534.5,3.94543702]
[1748825165045,0.37655244,2534.7,2534.5,3.94543702]
[1748825165248,0.37655244,2534.6,2534.5,3.94543702]
[1748825165425,0.37655244,2534.6,2534.2,3.94599915]
[1748825165627,0.37656612,2534.5,2534.3,3.94586276]
[1748825165975,2.368,2534.6,2534.2,4.42255883]
[1748825166113,0.37656098,2534.5,2534.2,3.94595891]
[1748825166309,2.368,2534.6,2534.2,3.94595891]
[1748825166540,0.37652729,2534.5,2534.2,3.94595891]
[1748825166843,2.368,2534.6,2534.2,3.94595891]
[1748825167048,0.37654037,2534.5,2534.2,3.94595891]
[1748825167212,3.94558148,2534.5,2534.0,4.7662605]
[1748825167413,9.0525707,2534.6,2534.1,3.94616978]
[1748825167659,4.32212131,2534.5,2534.0,4.7662561]
[1748825167817,0.376546,2534.4,2534.1,3.94615168]
[1748825168014,9.05256596,2534.6,2534.1,3.94615168]
[1748825168226,0.37653733,2534.5,2534.1,3.94615168]
[1748825168443,0.37651434,2534.4,2534.1,3.94615168]
[1748825168635,9.05256596,2534.6,2534.1,3.94615168]
[1748825168836,0.37652625,2534.5,2534.1,3.94615168]
[1748825169150,0.37652625,2534.4,2534.1,3.94615168]
[1748825169347,9.05256596,2534.6,2534.1,3.94615168]
[1748825169550,0.37651843,2534.5,2534.2,3.94599636]
[1748825169770,0.37651843,2534.4,2534.1,3.9461243]
[1748825169929,9.05249067,2534.6,2534.1,3.9461243]
[1748825170231,0.37672125,2534.5,2534.1,3.9461243]
[1748825170431,0.37672125,2534.4,2534.0,0.82]
[1748825170647,9.05249067,2534.6,2534.1,3.94613976]
[1748825170957,0.37677022,2534.5,2534.1,3.94613976]
[1748825171176,0.37677022,2534.4,2534.1,3.94613976]
[1748825171479,3.94578832,2534.4,2534.0,0.82]
[1748825171682,0.1559,2534.1,2533.4,0.7746]
[1748825171885,3.11582227,2534.0,2533.6,3.94691522]
[1748825172069,2.73909328,2534.0,2533.7,3.9467961]
[1748825172240,0.3766931,2533.9,2533.7,3.9467961]
[1748825172578,3.94674564,2533.8,2533.3,8.521]
[1748825172755,6.68583892,2533.8,2533.3,12.46834767]
[1748825172949,0.37657763,2533.7,2533.3,12.46834767]
[1748825173154,6.84173892,2533.8,2533.3,12.46834767]
[1748825173353,0.37656961,2533.7,2533.4,3.94721366]
[1748825173542,0.1559,2533.8,2533.4,3.94726454]
[1748825173738,0.1559,2533.8,2533.5,3.94708304]
[1748825173982,0.1559,2533.8,2533.3,12.46833879]
[1748825174185,4.102565,2533.8,2533.3,12.46833879]
[1748825174486,2.73909328,2533.6,2533.1,0.8148]
[1748825174810,9.05412502,2533.6,2533.1,3.94762914]
[1748825174947,0.37637904,2533.5,2533.1,3.94762914]
[1748825175147,9.05412502,2533.6,2533.1,3.94762914]
[1748825175382,0.37640066,2533.5,2533.1,3.94762914]
[1748825175684,9.05412502,2533.6,2533.1,3.94762914]
[1748825176177,0.37649037,2533.5,2533.1,3.94762914]
[1748825176379,5.10709328,2533.6,2533.2,3.94756799]
[1748825177573,2.5239,2534.0,2533.3,0.85277464]
[1748825177759,2.73909328,2533.7,2533.3,4.76067996]
[1748825178078,6.68595879,2533.7,2533.0,9.94514825]
[1748825178278,6.68595879,2533.7,2533.2,3.94750322]
[1748825178781,9.05399266,2533.7,2533.1,3.94773202]
[1748825178969,3.94696469,2533.6,2533.1,3.94773202]
[1748825179172,9.05396358,2533.7,2533.2,3.94756421]
[1748825179378,5.10709328,2533.7,2533.2,3.94756421]
[1748825179552,5.10709328,2533.7,2533.3,3.94741458]
[1748825179747,9.05393975,2533.7,2533.1,3.94770731]
[1748825180086,5.10709328,2533.7,2533.2,3.94754173]
[1748825180268,9.42989863,2533.7,2533.2,3.94754173]
[1748825180594,5.10709328,2533.7,2533.3,3.94740565]
[1748825180766,5.48300548,2533.7,2533.3,3.94740565]
[1748825181101,5.10709328,2533.7,2533.3,3.94740565]
[1748825181296,5.10709328,2533.7,2533.4,3.94724723]
[1748825181598,5.10709328,2533.7,2533.3,3.94733538]
[1748825182792,9.05394232,2533.7,2533.2,3.94754244]
[1748825183616,5.10709328,2533.7,2533.3,3.9474169]
[1748825184251,9.0538979,2533.7,2533.2,3.9474975]
[1748825184462,5.10709328,2533.7,2533.3,3.94741742]
[1748825185388,9.05393795,2533.7,2533.2,3.94753756]
[1748825185691,9.05390787,2533.7,2533.2,3.94757618]
[1748825186061,0.1559,2533.5,2533.1,3.9476451]
[1748825186261,2.73909328,2533.2,2532.6,0.7829]
[1748825186489,4.097,2533.4,2532.8,3.94815524]
[1748825186490,0.1559,2533.1,2532.8,3.94815524]
[1748825186803,0.1559,2533.1,2532.9,3.94804012]
[1748825186969,0.1559,2533.3,2532.9,3.94804012]
[1748825187151,0.1559,2533.3,2532.6,0.7829]